bitfinex-derivatives/quotes_BNBF0:USTF0_20260114
["timestamp","ask_amount","ask_price","bid_price","bid_amount"]
[1768351125514,0.18373278,948.27,946.1,1.0367574]
[1768351126322,0.18373278,948.27,946.08,1.0367574]
[1768351126521,0.18373278,948.27,946.11,1.0367574]
[1768351128222,0.18373278,948.27,946.12,1.0367574]
[1768351129417,0.18373278,948.27,946.13,1.0367574]
[1768351129819,0.18373278,948.27,946.12,1.0367574]
[1768351130019,0.18373278,948.27,946.11,1.0367574]
[1768351130322,0.18373278,948.27,946.1,1.0367574]
[1768351130521,0.18373278,948.27,946.11,1.0367574]
[1768351130822,0.18373278,948.27,946.1,1.0367574]
[1768351131322,0.18373278,948.27,946.13,1.0367574]
[1768351136323,0.18373278,948.27,946.12,1.0367574]
[1768351139330,0.18373278,948.27,945.27,2.642674]
[1768351139331,0.18373278,948.27,946.13,1.0367574]
[1768351141327,0.18373278,948.27,946.15,1.0367574]
[1768351142229,0.18373278,948.27,946.16,1.0367574]
[1768351144432,0.18373278,948.27,946.17,1.0367574]
[1768351146231,0.18373278,948.27,946.18,1.0367574]
[1768351148333,0.18373278,948.27,946.19,1.0367574]
[1768351149034,0.18373278,948.27,946.2,1.0367574]
[1768351150439,0.18373278,948.27,946.21,1.0367574]
[1768351151238,0.18373278,948.27,946.19,1.0367574]
[1768351152243,0.18373278,948.27,946.2,1.0367574]
[1768351153239,0.18373278,948.27,946.21,1.0367574]
[1768351154338,0.18373278,948.27,946.22,1.0367574]
[1768351155244,0.18373278,948.27,946.23,1.0367574]
[1768351156240,0.18373278,948.27,946.25,1.0367574]
[1768351157345,0.18373278,948.27,946.26,1.0367574]
[1768351158345,0.18373278,948.27,946.28,1.0367574]
[1768351158641,0.18373278,948.27,946.1,1.57630776]
[1768351159245,0.18373278,948.27,946.13,1.57630776]
[1768351160241,0.18373278,948.27,946.16,1.57630776]
[1768351161245,0.18373278,948.27,946.2,1.57630776]
[1768351162345,0.18373278,948.27,946.22,1.57630776]
[1768351163342,0.18373278,948.27,946.23,1.57630776]
[1768351164351,0.18373278,948.27,946.24,1.57630776]
[1768351165250,0.18373278,948.27,946.25,1.57630776]
[1768351166244,0.18373278,948.27,946.26,1.57630776]
[1768351166649,0.18373278,948.27,946.33,1.57630776]
[1768351168349,0.18373278,948.27,946.35,1.57630776]
[1768351168550,0.18373278,948.27,946.34,1.57630776]
[1768351169348,0.18373278,948.27,946.36,1.57630776]
[1768351169850,0.18373278,948.27,946.35,1.57630776]
[1768351170250,0.18373278,948.27,946.36,1.57630776]
[1768351170747,0.18373278,948.27,946.35,1.57630776]
[1768351173349,0.18373278,948.27,946.34,1.57630776]
[1768351177053,0.18373278,948.27,946.27,1.57630776]
[1768351182453,0.18373278,948.27,946.12,1.57630776]
[1768351183157,0.18373278,948.27,946.11,1.57630776]
[1768351183356,0.18373278,948.27,946.1,1.57630776]
[1768351184355,0.18373278,948.27,946.09,1.57630776]
[1768351185259,0.18373278,948.27,946.08,1.57630776]
[1768351186359,0.18373278,948.27,946.07,1.57630776]
[1768351188259,0.18373278,948.27,946.06,1.57630776]
[1768351189058,0.18373278,948.27,946.08,1.57630776]
[1768351189258,0.18373278,948.27,946.07,1.57630776]
[1768351192163,0.18373278,948.27,946.06,1.57630776]
[1768351195065,0.18373278,948.27,946.04,1.57630776]
[1768351198268,0.18373278,948.27,946.03,1.57630776]
[1768351201269,0.18373278,948.27,945.98,1.57630776]
[1768351203666,0.18373278,948.27,946.07,1.57630776]
[1768351203871,0.18373278,948.27,946.18,1.57630776]
[1768351204068,0.18373278,948.27,946.2,1.57630776]
[1768351205066,0.18373278,948.27,946.21,1.57630776]
[1768351207269,0.18373278,948.27,946.2,1.57630776]
[1768351207473,0.18373278,948.27,946.22,1.57630776]
[1768351207773,0.18373278,948.27,946.26,1.57630776]
[1768351208173,0.18373278,948.27,946.25,1.57630776]
[1768351211174,0.18373278,948.27,946.29,1.57630776]
[1768351214277,0.18373278,948.27,946.11,1.57630776]
[1768351214474,0.18373278,948.27,946.06,43.39774228]
[1768351272616,0.18373278,948.27,945.67,1.57630776]
[1768351276119,0.18373278,948.27,945.68,1.57630776]
[1768351281324,0.18373278,948.27,945.49,42.56288815]
[1768351281325,0.18373278,948.27,945.74,1.57630776]
[1768351281925,0.18373278,948.27,945.49,42.56288815]
[1768351281926,0.18373278,948.27,945.72,1.57630776]
[1768351282326,0.18373278,948.27,945.71,1.57630776]
[1768351282522,0.18373278,948.27,945.69,1.57630776]
[1768351283326,0.18373278,948.27,945.68,1.57630776]
[1768351283527,0.18373278,948.27,945.66,1.57630776]
[1768351283927,0.18373278,948.27,945.65,1.57630776]
[1768351284226,0.18373278,948.27,945.49,42.56288815]
[1768351284227,0.18373278,948.27,945.64,1.57630776]
[1768351284822,0.18373278,948.27,945.62,1.57630776]
[1768351286323,0.18373278,948.27,945.61,1.57630776]
[1768351286525,0.18373278,948.27,945.59,1.57630776]
[1768351286723,0.18373278,948.27,945.58,1.57630776]
[1768351287528,0.18373278,948.27,945.57,1.57630776]
[1768351289326,0.18373278,948.27,945.56,1.57630776]
[1768351291331,0.18373278,948.27,945.57,1.57630776]
[1768351292229,0.18373278,948.27,945.56,1.57630776]
[1768351296234,0.18373278,948.27,945.55,1.57630776]
[1768351296734,0.18373278,948.27,945.56,1.57630776]
[1768351300240,0.18373278,948.27,945.57,1.57630776]
[1768351301442,0.18373278,948.27,945.49,42.56288815]
[1768351306454,0.18373278,948.27,945.51,1.57630776]
[1768351306654,0.18373278,948.27,945.52,1.57630776]
[1768351307056,0.18373278,948.27,945.53,1.57630776]
[1768351307350,0.18373278,948.27,945.54,1.57630776]
[1768351309354,0.18373278,948.27,945.55,1.57630776]
[1768351309752,0.18373278,948.27,945.56,1.57630776]
[1768351310256,0.18373278,948.27,945.57,1.57630776]
[1768351310451,5.23643,948.78,945.57,1.57630776]
[1768351310756,0.18373424,947.6,945.57,1.57630776]
[1768351310957,5.23643,948.78,945.57,1.57630776]
[1768351311156,0.18373327,947.98,945.57,1.57630776]
[1768351311353,0.18373327,947.98,945.69,1.57630776]
[1768351312256,0.18373327,947.98,945.7,1.57630776]
[1768351315955,0.18373327,947.98,945.69,1.57630776]
[1768351316458,0.18373327,947.98,945.7,1.57630776]
[1768351319157,0.18373327,947.98,945.68,1.57630776]
[1768351319355,0.18373327,947.98,945.69,1.57630776]
[1768351321358,0.18373327,947.98,945.76,1.57630776]
[1768351324856,0.18373327,947.98,945.73,1.57630776]
[1768351325159,0.18373327,947.98,945.61,1.57630776]
[1768351326161,0.18373327,947.98,945.6,1.57630776]
[1768351326457,0.18373327,947.98,945.61,1.57630776]
[1768351327060,0.18373327,947.98,945.6,1.57630776]
[1768351327260,0.18373327,947.98,945.61,1.57630776]
[1768351328163,0.18373327,947.98,945.6,1.57630776]
[1768351330267,0.18373327,947.98,945.49,42.56288815]
[1768351391409,0.18373327,947.98,945.54,1.57630776]
[1768351394410,0.18373327,947.98,945.55,1.57630776]
[1768351396116,0.18373327,947.98,945.56,1.57630776]
[1768351398217,0.18373327,947.98,945.57,1.57630776]
[1768351399217,0.18373327,947.98,945.62,1.57630776]
[1768351399917,0.18373327,947.98,945.63,1.57630776]
[1768351400117,0.18373327,947.98,945.64,1.57630776]
[1768351400313,0.18373327,947.98,945.63,1.57630776]
[1768351400513,0.18373327,947.98,945.66,1.57630776]
[1768351400714,0.18373327,947.98,945.72,1.57630776]
[1768351400917,0.18373327,947.98,945.8,1.57630776]
[1768351401218,0.18373327,947.98,945.81,1.57630776]
[1768351401515,0.18373327,947.98,945.83,1.57630776]
[1768351402018,0.18373327,947.98,945.41,43.51010524]
[1768351402019,0.18373327,947.98,945.86,1.57630776]
[1768351402414,0.18373327,947.98,945.84,1.57630776]
[1768351403417,0.18373327,947.98,945.82,1.57630776]
[1768351404118,0.18373327,947.98,945.83,1.57630776]
[1768351404323,0.18373327,947.98,945.81,1.57630776]
[1768351405116,0.18373327,947.98,945.82,1.57630776]
[1768351405320,0.18373327,947.98,945.8,1.57630776]
[1768351406318,0.18373327,947.98,945.81,1.57630776]
[1768351407523,0.18373327,947.98,945.8,1.57630776]
[1768351408320,0.18373327,947.98,945.79,1.57630776]
[1768351409421,0.18373327,947.98,945.78,1.57630776]
[1768351410420,0.18373327,947.98,945.79,1.57630776]
[1768351410921,0.18373327,947.98,945.82,1.57630776]
[1768351411124,0.18373327,947.98,945.81,1.57630776]
[1768351411522,0.18373327,947.98,945.41,43.51010524]
[1768351411523,0.18373327,947.98,945.85,1.57630776]
[1768351412126,0.18373327,947.98,945.84,1.57630776]
[1768351413423,0.18373327,947.98,945.83,1.57630776]
[1768351416321,0.18373327,947.98,945.82,1.57630776]
[1768351416626,0.18373327,947.98,945.84,1.57630776]
[1768351416822,0.18373327,947.98,945.85,1.57630776]
[1768351417323,0.18373327,947.98,945.87,1.57630776]
[1768351418326,0.18373327,947.98,945.86,1.57630776]
[1768351420328,0.18373327,947.98,945.88,1.57630776]
[1768351420729,0.18373327,947.98,945.91,1.57630776]
[1768351421026,0.18373327,947.98,946.03,1.57630776]
[1768351421326,0.18373327,947.98,946.02,1.57630776]
[1768351422429,0.18373327,947.98,946.01,1.57630776]
[1768351423327,0.18373327,947.98,946.0,1.57630776]
[1768351423927,0.18373327,947.98,946.08,1.57630776]
[1768351424127,0.18373327,947.98,946.11,1.57630776]
[1768351424332,0.18373327,947.98,946.1,1.57630776]
[1768351424630,0.18373327,947.98,946.11,1.57630776]
[1768351424931,0.18373327,947.98,946.15,1.57630776]
[1768351425133,0.18373327,947.98,946.2,1.57630776]
[1768351425329,0.18373327,947.98,946.04,43.11433416]
[1768351425330,0.18373327,947.98,946.18,1.57630776]
[1768351426430,0.18373327,947.98,946.16,1.57630776]
[1768351427332,0.18373327,947.98,946.14,1.57630776]
[1768351428034,0.18373327,947.98,946.15,1.57630776]
[1768351428437,0.18373327,947.98,946.16,1.57630776]
[1768351428931,0.18373327,947.98,946.2,1.57630776]
[1768351429135,0.18373327,947.98,946.27,1.57630776]
[1768351429332,0.18373327,947.98,946.35,1.57630776]
[1768351430432,0.18373327,947.98,946.32,1.57630776]
[1768351431536,0.18373327,947.98,946.3,1.57630776]
[1768351432236,0.18373327,947.98,946.28,1.57630776]
[1768351432431,0.18373327,947.98,946.29,1.57630776]
[1768351433034,0.18373327,947.98,946.25,1.57630776]
[1768351433234,0.18373327,947.98,946.16,1.57630776]
[1768351433432,0.18373327,947.98,946.15,1.57630776]
[1768351435340,0.18373327,947.98,946.14,1.57630776]
[1768351439341,0.18373327,947.98,946.15,1.57630776]
[1768351440345,0.18373327,947.98,946.16,1.57630776]
[1768351442444,0.18373327,947.98,946.17,1.57630776]
[1768351443348,0.18373327,947.98,946.18,1.57630776]
[1768351444248,0.18373327,947.98,946.19,1.57630776]
[1768351445251,0.18373327,947.98,946.21,1.57630776]
[1768351447552,0.18373327,947.98,946.2,1.57630776]
[1768351447753,0.18373327,947.98,946.15,1.57630776]
[1768351448355,0.18373327,947.98,946.04,43.11433416]
[1768351449454,0.18373327,947.98,946.04,44.69064192]
[1768351450354,0.18373327,947.98,946.05,1.57630776]
[1768351450553,0.18373327,947.98,946.04,44.69064192]
[1768351451455,0.18373327,947.98,946.05,1.57630776]
[1768351451755,0.18373327,947.98,946.04,44.69064192]
[1768351452452,0.18373327,947.98,946.05,1.57630776]
[1768351453458,0.18373327,947.98,946.06,1.57630776]
[1768351454456,0.18373327,947.98,946.07,1.57630776]
[1768351455560,0.18373327,947.98,946.08,1.57630776]
[1768351456561,0.18373327,947.98,946.09,1.57630776]
[1768351458357,0.18373327,947.98,946.11,1.57630776]
[1768351459458,0.18373327,947.98,946.04,43.11433416]
[1768351459459,0.18373327,947.98,946.12,1.57630776]
[1768351460358,0.18373327,947.98,946.14,1.57630776]
[1768351461262,0.18373327,947.98,946.15,1.57630776]
[1768351461462,0.18373327,947.98,946.04,43.11433416]
[1768351461463,0.18373327,947.98,946.1,1.57630776]
[1768351462363,0.18373327,947.98,946.11,1.57630776]
[1768351462760,0.18373327,947.98,946.1,1.57630776]
[1768351463364,0.18373327,947.98,946.11,1.57630776]
[1768351464364,0.18373327,947.98,946.12,1.57630776]
[1768351464962,0.18373327,947.98,946.11,1.57630776]
[1768351465464,0.18373327,947.98,946.13,1.57630776]
[1768351468266,0.18373327,947.98,946.14,1.57630776]
[1768351468769,0.18373327,947.98,946.13,1.57630776]
[1768351468974,0.18373327,947.98,946.06,1.57630776]
[1768351469170,0.18373327,947.98,946.04,43.11433416]
[1768351511119,0.00939547,948.55,946.04,43.11433416]
[1768351511419,0.18367363,947.5,946.04,43.11433416]
[1768351511819,5.23643,949.16,946.04,43.11433416]
[1768351512120,0.18367363,947.14,946.04,43.11433416]
[1768351512417,0.01302029,948.45,946.04,43.11433416]
[1768351512418,5.23643,949.16,946.04,43.11433416]
[1768351512618,0.18367363,948.39,946.04,43.11433416]
[1768351512814,0.0130719,948.09,946.04,43.11433416]
[1768351513217,0.18367363,948.39,946.04,43.11433416]
[1768351513416,0.18367363,948.39,946.04,44.69064192]
[1768351513623,0.18367363,948.39,946.04,43.11433416]
[1768351524725,0.18367363,948.39,945.66,1.05022613]
[1768351525130,0.18367363,948.39,945.63,1.05022613]
[1768351525328,0.18367363,948.39,945.61,1.05022613]
[1768351525529,0.18367363,948.39,945.49,1.05022613]
[1768351526126,0.18367363,948.39,945.48,1.05022613]
[1768351526328,0.18367363,948.39,945.47,1.05022613]
[1768351527228,0.18367363,948.39,945.45,1.05022613]
[1768351528230,0.18367363,948.39,945.44,1.05022613]
[1768351529126,0.18367363,948.39,945.43,1.05022613]
[1768351530131,0.18367363,948.39,945.42,1.05022613]
[1768351530626,0.18367363,948.39,945.33,1.05022613]
[1768351531428,0.18367363,948.39,945.41,1.05022613]
[1768351532330,0.18367363,948.39,945.39,1.05022613]
[1768351533130,0.18367363,948.39,945.36,1.05022613]
[1768351536832,0.18367363,948.39,945.24,1.05022613]
[1768351537136,0.18367363,948.39,945.22,1.05022613]
[1768351538137,0.18367363,948.39,945.21,1.05022613]
[1768351539133,0.18367363,948.39,945.2,1.05022613]
[1768351539340,0.18367363,948.39,945.21,1.05022613]
[1768351540240,0.18367363,948.39,945.2,1.05022613]
[1768351541141,0.18367363,948.39,945.19,1.05022613]
[1768351543242,0.18367363,948.39,945.18,1.05022613]
[1768351543446,0.18367363,948.39,945.19,1.05022613]
[1768351543943,0.18367363,948.39,945.2,1.05022613]
[1768351545643,3.67042737,948.17,945.2,1.05022613]
[1768351545848,3.67042737,948.17,945.24,1.05022613]
[1768351546447,3.67042737,948.17,945.25,1.05022613]
[1768351546842,0.18367363,948.39,945.25,1.05022613]
[1768351547148,0.18367363,948.39,945.26,1.05022613]
[1768351548048,0.18367363,948.39,945.25,1.05022613]
[1768351548348,3.67137441,948.2,945.25,1.05022613]
[1768351550249,3.67137441,948.19,945.26,1.05022613]
[1768351550445,3.67137441,948.19,945.24,1.05022613]
[1768351551247,3.67137441,948.19,945.23,1.05022613]
[1768351551451,3.67137441,948.15,945.2,1.05022613]
[1768351552150,3.67137441,948.15,945.21,1.05022613]
[1768351552351,3.67137441,948.12,945.21,1.05022613]
[1768351553247,3.67137441,948.12,945.22,1.05022613]
[1768351553552,3.67137441,948.11,945.22,1.05022613]
[1768351554150,3.67137441,948.11,945.23,1.05022613]
[1768351554351,3.67137441,948.1,945.23,1.05022613]
[1768351555152,3.67137441,948.1,945.24,1.05022613]
[1768351555550,3.67137441,948.09,945.24,1.05022613]
[1768351556255,3.67137441,948.09,945.25,1.05022613]
[1768351556452,3.67137441,948.08,945.25,1.05022613]
[1768351557155,3.67137441,948.08,945.26,1.05022613]
[1768351557655,3.67137441,948.06,945.26,1.05022613]
[1768351558152,3.67137441,948.06,945.28,1.05022613]
[1768351558655,3.67137441,948.04,945.28,1.05022613]
[1768351559152,3.67137441,948.04,945.3,1.05022613]
[1768351559557,3.67137441,948.02,945.3,1.05022613]
[1768351560356,3.67137441,948.02,945.31,1.05022613]
[1768351561457,3.67137441,948.02,945.32,1.05022613]
[1768351562153,3.67137441,948.02,945.33,1.05022613]
[1768351563257,3.67137441,948.02,945.34,1.05022613]
[1768351563758,3.67137441,948.01,945.34,1.05022613]
[1768351564258,3.67137441,948.01,945.35,1.05022613]
[1768351564961,3.67137441,948.0,945.35,1.05022613]
[1768351565158,3.67137441,948.0,945.42,1.05022613]
[1768351565461,3.67137441,948.0,945.41,1.05022613]
[1768351565856,3.67137441,948.05,945.41,1.05022613]
[1768351566160,3.67137441,948.05,945.43,1.05022613]
[1768351566858,3.67137441,948.04,945.43,1.05022613]
[1768351567159,3.67137441,948.04,945.44,1.05022613]
[1768351567960,3.67137441,948.03,945.44,1.05022613]
[1768351568163,3.67137441,948.03,945.46,1.05022613]
[1768351568863,3.67137441,948.01,945.46,1.05022613]
[1768351569163,3.67137441,948.01,945.48,1.05022613]
[1768351569963,3.67137441,948.0,945.48,1.05022613]
[1768351570161,3.67137441,948.0,945.5,1.05022613]
[1768351571060,3.67137441,947.98,945.5,1.05022613]
[1768351571364,3.67137441,947.98,945.51,1.05022613]
[1768351571561,3.67137441,947.98,945.37,1.05022613]
[1768351572061,3.67137441,947.84,945.37,1.05022613]
[1768351572362,3.67137441,947.84,945.38,1.05022613]
[1768351573260,3.67137441,947.84,945.39,1.05022613]
[1768351574066,3.67137441,947.83,945.39,1.05022613]
[1768351574262,3.67137441,947.83,945.4,1.05022613]
[1768351575167,3.67137441,947.82,945.41,1.05022613]
[1768351576169,3.67137441,947.81,945.41,1.05022613]
[1768351576966,3.67137441,947.81,945.5,1.05022613]
[1768351577167,3.67137441,947.92,945.51,1.05022613]
[1768351577865,3.67137441,947.92,945.56,1.05022613]
[1768351578065,3.67137441,947.92,945.57,1.05022613]
[1768351578369,42.16154576,947.83,945.56,1.05022613]
[1768351579169,42.16154576,947.83,945.63,1.05022613]
[1768351579374,42.16154576,947.83,945.25,41.99068837]
[1768351579375,42.16154576,947.83,945.66,1.05022613]
[1768351579569,42.16154576,947.83,945.67,1.05022613]
[1768351580173,42.16154576,947.83,945.5,1.57630776]
[1768351580174,42.16154576,947.83,945.65,1.05022613]
[1768351580773,3.67137441,948.14,945.65,1.05022613]
[1768351581174,3.67137441,948.14,945.63,1.05022613]
[1768351581374,3.67137441,948.16,945.63,1.05022613]
[1768351581575,3.67137441,948.16,945.78,1.05022613]
[1768351581771,43.49481108,948.07,945.78,1.05022613]
[1768351582271,43.49481108,948.07,945.77,1.05022613]
[1768351583276,43.49481108,948.07,945.76,1.05022613]
[1768351584176,43.49481108,948.07,945.75,1.05022613]
[1768351586180,43.49481108,948.07,945.74,1.05022613]
[1768351586481,43.49481108,948.07,945.79,1.05022613]
[1768351586677,43.49481108,948.07,946.0,1.05022613]
[1768351587181,43.49481108,948.07,945.97,1.05022613]
[1768351588081,43.49481108,948.07,945.95,1.05022613]
[1768351589283,43.49481108,948.07,945.93,1.05022613]
[1768351590183,43.49481108,948.07,945.92,1.05022613]
[1768351590883,43.49481108,948.07,945.99,1.05022613]
[1768351591182,43.49481108,948.07,946.0,1.05022613]
[1768351591383,43.49481108,948.07,945.98,1.05022613]
[1768351591982,43.49481108,948.07,945.99,1.05022613]
[1768351592187,43.49481108,948.07,945.96,1.05022613]
[1768351593183,43.49481108,948.07,945.94,1.05022613]
[1768351593887,43.49481108,948.07,945.95,1.05022613]
[1768351594088,43.49481108,948.07,945.93,1.05022613]
[1768351594789,43.49481108,948.07,945.94,1.05022613]
[1768351595189,43.49481108,948.07,945.93,1.05022613]
[1768351596188,43.49481108,948.07,945.92,1.05022613]
[1768351597094,43.49481108,948.07,945.9,1.05022613]
[1768351597793,43.49481108,948.07,945.92,1.05022613]
[1768351598190,43.49481108,948.07,945.91,1.05022613]
[1768351599292,43.49481108,948.07,945.9,1.05022613]
[1768351601096,43.49481108,948.07,945.89,1.05022613]
[1768351601498,43.49481108,948.07,945.98,1.05022613]
[1768351601794,43.49481108,948.07,946.13,1.05022613]
[1768351602098,43.49481108,948.07,946.12,1.05022613]
[1768351603195,43.49481108,948.07,946.11,1.05022613]
[1768351605101,43.49481108,948.07,946.1,1.05022613]
[1768351605502,43.49481108,948.07,946.12,1.05022613]
[1768351605802,43.49481108,948.07,946.13,1.05022613]
[1768351606301,43.49481108,948.07,946.12,1.05022613]
[1768351609201,43.49481108,948.07,946.11,1.05022613]
[1768351613212,43.49481108,948.07,946.12,1.05022613]
[1768351613909,43.49481108,948.07,946.09,1.05022613]
[1768351614110,43.49481108,948.07,946.08,1.05022613]
[1768351614306,43.49481108,948.07,946.05,1.05022613]
[1768351614513,43.49481108,948.07,945.97,1.05022613]
[1768351615113,43.49481108,948.07,945.98,1.05022613]
[1768351616212,43.49481108,948.07,945.99,1.05022613]
[1768351617211,43.49481108,948.07,946.01,1.05022613]
[1768351618210,43.49481108,948.07,946.02,1.05022613]
[1768351619213,43.49481108,948.07,946.04,1.05022613]
[1768351619812,43.49481108,948.07,945.93,1.05022613]
[1768351620311,43.49481108,948.07,945.94,1.05022613]
[1768351620814,43.49481108,948.07,945.95,1.05022613]
[1768351621414,43.49481108,948.07,946.01,1.05022613]
[1768351622210,43.49481108,948.07,946.03,1.05022613]
[1768351623117,43.49481108,948.07,946.05,1.05022613]
[1768351624216,43.49481108,948.07,946.06,1.05022613]
[1768351624519,43.49481108,948.07,946.09,1.05022613]
[1768351624719,43.49481108,948.07,946.21,1.05022613]
[1768351625216,43.49481108,948.07,946.22,1.05022613]
[1768351626317,43.49481108,948.07,946.23,1.05022613]
[1768351627121,43.49481108,948.07,946.24,1.05022613]
[1768351628223,43.49481108,948.07,946.26,1.05022613]
[1768351629323,43.49481108,948.07,946.43,1.05022613]
[1768351629621,43.49481108,948.07,946.42,1.05022613]
[1768351630218,43.49481108,948.07,946.44,1.05022613]
[1768351631119,43.49481108,948.07,946.47,1.05022613]
[1768351631418,43.49481108,948.07,946.46,1.05022613]
[1768351632224,43.49481108,948.07,946.47,1.05022613]
[1768351632424,43.49481108,948.07,946.46,1.05022613]
[1768351633220,43.49481108,948.07,946.48,1.05022613]
[1768351633425,43.49481108,948.07,946.47,1.05022613]
[1768351634224,43.49481108,948.07,946.48,1.05022613]
[1768351634426,43.49481108,948.07,946.52,1.05022613]
[1768351635229,43.49481108,948.07,946.53,1.05022613]
[1768351635525,43.49481108,948.07,946.52,1.05022613]
[1768351636226,43.49481108,948.07,946.53,1.05022613]
[1768351636430,43.49481108,948.07,946.52,1.05022613]
[1768351636630,43.49481108,948.07,946.54,1.05022613]
[1768351636927,43.49481108,948.07,946.6,1.05022613]
[1768351637329,43.49481108,948.07,945.74,2.642674]
[1768351637330,43.49481108,948.07,946.61,1.05022613]
[1768351638027,43.49481108,948.07,946.6,1.05022613]
[1768351638331,43.49481108,948.07,946.59,1.05022613]
[1768351639632,43.49481108,948.07,946.57,1.05022613]
[1768351639830,43.49481108,948.07,946.49,1.05022613]
[1768351640133,43.49481108,948.07,946.4,1.05022613]
[1768351641137,43.49481108,948.07,946.41,1.05022613]
[1768351643135,43.49481108,948.07,946.42,1.05022613]
[1768351645242,43.49481108,948.07,946.43,1.05022613]
[1768351646339,43.49481108,948.07,946.44,1.05022613]
[1768351647142,43.49481108,948.07,946.43,1.05022613]
[1768351647338,43.49481108,948.07,946.44,1.05022613]
[1768351648142,43.49481108,948.07,946.43,1.05022613]
[1768351648543,43.49481108,948.07,946.36,1.05022613]
[1768351648842,43.49481108,948.07,946.35,1.05022613]
[1768351652648,43.49481108,948.07,946.37,1.05022613]
[1768351656153,43.49481108,948.07,946.36,1.05022613]
[1768351656449,43.49481108,948.07,946.37,1.05022613]
[1768351657153,43.49481108,948.07,946.36,1.05022613]
[1768351657450,43.49481108,948.07,946.37,1.05022613]
[1768351658153,43.49481108,948.07,946.36,1.05022613]
[1768351658553,43.49481108,948.07,946.37,1.05022613]
[1768351659156,43.49481108,948.07,946.36,1.05022613]
[1768351659352,43.49481108,948.07,946.38,1.05022613]
[1768351661352,43.49481108,948.07,946.39,1.05022613]
[1768351661553,43.49481108,948.07,946.37,1.05022613]
[1768351661852,43.49481108,948.07,946.39,1.05022613]
[1768351664464,43.49481108,948.07,946.37,1.05022613]
[1768351666361,43.49481108,948.07,946.38,1.05022613]
[1768351667360,43.49481108,948.07,946.39,1.05022613]
[1768351667963,43.49481108,948.07,946.4,1.05022613]
[1768351668361,43.49481108,948.07,946.41,1.05022613]
[1768351669466,43.49481108,948.07,946.42,1.05022613]
[1768351671470,43.49481108,948.07,946.43,1.05022613]
[1768351672375,43.49481108,948.07,946.44,1.05022613]
[1768351677078,43.49481108,948.07,946.45,1.05022613]
[1768351678981,43.49481108,948.07,946.44,1.05022613]
[1768351682583,43.49481108,948.07,946.45,1.05022613]
[1768351683385,43.49481108,948.07,946.47,1.05022613]
[1768351684584,43.49481108,948.07,946.49,1.05022613]
[1768351685482,43.49481108,948.07,946.51,1.05022613]
[1768351691287,43.49481108,948.07,946.52,1.05022613]
[1768351696287,43.49481108,948.07,946.49,1.05022613]
[1768351696488,43.49481108,948.07,946.5,1.05022613]
[1768351696791,43.49481108,948.07,946.39,1.05022613]
[1768351697192,43.49481108,948.07,946.38,1.05022613]
[1768351697789,43.49481108,948.07,946.42,1.05022613]
[1768351701191,43.49481108,948.07,946.41,1.05022613]
[1768351703594,0.18367363,948.39,946.41,1.05022613]
[1768351705295,42.28235287,948.3,946.41,1.05022613]
[1768351705597,42.28235287,948.3,946.49,1.05022613]
[1768351706696,42.28235287,948.3,946.5,1.05022613]
[1768351707300,42.28235287,948.3,946.48,1.05022613]
[1768351707700,42.28235287,948.3,946.42,1.05022613]
[1768351707900,42.28235287,948.3,946.33,1.05022613]
[1768351709201,42.28235287,948.3,946.32,1.05022613]
[1768351710399,42.28235287,948.3,946.31,1.05022613]
[1768351710699,42.28235287,948.3,946.32,1.05022613]
[1768351710900,42.28235287,948.3,946.31,1.05022613]
[1768351711501,42.28235287,948.3,946.22,1.05022613]
[1768351712805,0.18370078,947.79,946.05,1.57630776]
[1768351713501,0.18370078,947.79,946.22,1.05228691]
[1768351714403,0.18370078,947.79,946.2,1.05228691]
[1768351716701,0.18370078,947.79,946.11,1.05228691]
[1768351718007,0.18370078,947.79,946.09,1.05228691]
[1768351718517,0.18370078,947.79,946.08,1.05228691]
[1768351719310,0.18370078,947.79,945.88,1.05228691]
[1768351720310,0.18370078,947.79,945.86,1.05228691]
[1768351721209,0.18370078,947.79,945.84,1.05228691]
[1768351721610,0.18370078,947.79,945.93,1.05228691]
[1768351722206,0.18370078,947.79,945.91,1.05228691]
[1768351723410,0.18370078,947.79,945.9,1.05228691]
[1768351724307,0.18370078,947.79,945.89,1.05228691]
[1768351724508,0.18370078,947.79,945.9,1.05228691]
[1768351725409,0.18370078,947.79,945.77,42.04625102]
[1768351725410,0.18370078,947.79,945.89,1.05228691]
[1768351726407,0.18370078,947.79,946.07,1.05228691]
[1768351726608,0.18370078,947.79,946.08,1.05228691]
[1768351726910,0.18370078,947.79,946.09,1.05228691]
[1768351729113,0.18370078,947.79,946.1,1.05228691]
[1768351731210,0.18370078,947.79,946.11,1.05228691]
[1768351732611,0.18370078,947.79,946.13,1.05228691]
[1768351733211,0.18370078,947.79,946.14,1.05228691]
[1768351733515,0.18370078,947.79,946.27,1.05228691]
[1768351735215,0.18370078,947.79,946.28,1.05228691]
[1768351740125,0.18370078,947.79,946.29,1.05228691]
[1768351740423,0.18370078,947.79,946.3,1.05228691]
[1768351741130,0.18370078,947.79,946.35,1.05228691]
[1768351741428,0.18370078,947.79,946.4,1.05228691]
[1768351743330,0.18370078,947.79,946.39,1.05228691]
[1768351750331,0.18370078,947.79,946.38,1.05228691]
[1768351752233,0.18370078,947.79,946.36,1.05228691]
[1768351752434,0.18370078,947.79,946.35,1.05228691]